fUST/lending_fUST_20241108
["ID","MTS","AMOUNT","RATE_DAILY","PERIOD"]
[341640574,1731054642564,-500.0,0.00021917,2]
[341640575,1731054642574,-500.0,0.00021917,2]
[341640576,1731054642584,-1281.41,0.00021917,2]
[341640577,1731054642594,-500.0,0.00021917,3]
[341640578,1731054642603,-230.34199532,0.00021917,2]
[341640579,1731054642612,-500.0,0.00021917,2]
[341640580,1731054642621,-500.0,0.00021917,2]
[341640581,1731054642630,-500.0,0.00021917,2]
[341640582,1731054642639,-576.3781736,0.00021917,2]
[341640583,1731054642649,-500.0,0.00021917,2]
[341640584,1731054642659,-1146.35,0.00021917,2]
[341640585,1731054642667,-502.71278832,0.00021917,2]
[341640586,1731054642676,-500.0,0.00021917,2]
[341640587,1731054642685,-500.0,0.00021917,2]
[341640588,1731054642694,-500.0,0.00021917,2]
[341640589,1731054642703,-500.0,0.00021917,2]
[341640590,1731054642712,-246.6002425,0.00021917,2]
[341640591,1731054642721,-500.0,0.00021917,2]
[341640592,1731054642730,-500.0,0.00021917,2]
[341640593,1731054642739,-500.0,0.00021917,2]
[341640594,1731054642748,-500.0,0.00021917,2]
[341640595,1731054642757,-500.0,0.00021917,2]
[341640596,1731054642766,-500.0,0.00021917,2]
[341640597,1731054642775,-12170.22,0.00021917,2]
[341640598,1731054642784,-500.0,0.00021917,2]
[341640599,1731054642792,-500.0,0.00021917,2]
[341640600,1731054642805,-500.0,0.00021917,2]
[341640601,1731054642814,-500.0,0.00021917,2]
[341640603,1731054642823,-166.666666,0.00021918,2]
[341640604,1731054642832,-569.64844154,0.00021954,2]
[341640605,1731054642842,-154.68825,0.00021971,2]
[341640606,1731054642852,-163.0,0.00022,2]
[341640607,1731054642862,-1255.03891182,0.00022,2]
[341640608,1731054642871,-569.64844154,0.00022091,2]
[341640609,1731054642880,-500.0,0.0002219,2]
[341640610,1731054642889,-500.0,0.0002219,2]
[341640611,1731054642899,-500.0,0.0002219,2]
[341640612,1731054642908,-184.92826503,0.0002219,2]
[341640613,1731054642917,-279.99612457,0.0002219,2]
[341640614,1731054642926,-174.27133964,0.0002219,2]
[341640615,1731054642934,-207.16656348,0.0002219,2]
[341640616,1731054642943,-368.09753369,0.0002219,2]
[341640617,1731054642952,-500.0,0.00022191,2]
[341640618,1731054642962,-260.53801076,0.00022191,2]
[341640619,1731054642971,-500.0,0.00022191,2]
[341640620,1731054642980,-500.0,0.00022191,2]
[341640622,1731054642989,-500.0,0.00022191,2]
[341640623,1731054642998,-500.0,0.00022191,2]
[341640625,1731054643007,-500.0,0.00022191,2]
[341640627,1731054643016,-500.0,0.00022191,2]
[341640629,1731054643025,-500.0,0.00022191,2]
[341640631,1731054643034,-500.0,0.00022191,2]
[341640633,1731054643042,-513.54947774,0.00022191,2]
[341640635,1731054643054,-500.0,0.00022191,2]
[341640638,1731054643063,-565.3794252,0.00022191,2]
[341640640,1731054643072,-200.0,0.00022191,2]
[341640642,1731054643081,-512.99331277,0.00022191,2]
[341640644,1731054643090,-258.41641257,0.00022191,2]
[341640645,1731054643099,-500.0,0.00022191,2]
[341640648,1731054643111,-151.0,0.00022191,7]
[341640650,1731054643120,-151.0,0.00022191,7]
[341640651,1731054643129,-500.0,0.00022191,2]
[341640653,1731054643138,-500.0,0.00022191,2]
[341640654,1731054643150,-500.0,0.00022191,2]
[341640656,1731054643159,-500.0,0.00022191,2]
[341640658,1731054643168,-541.66879555,0.00022191,2]
[341640660,1731054643178,-500.0,0.00022191,2]
[341640662,1731054643187,-646.71601174,0.00022191,2]
[341640664,1731054643196,-180.87726891,0.00022191,2]
[341640665,1731054643206,-500.0,0.00022191,2]
[341640666,1731054643216,-500.0,0.00022191,2]
[341640667,1731054643225,-606.31086036,0.00022191,2]
[341640670,1731054643234,-500.0,0.00022191,2]
[341640671,1731054643243,-500.0,0.00022191,2]
[341640673,1731054643253,-500.0,0.00022191,2]
[341640675,1731054643262,-500.0,0.00022191,2]
[341640677,1731054643271,-713.44,0.00022191,2]
[341640679,1731054643281,-401.12,0.00022191,2]
[341640681,1731054643290,-500.0,0.00022191,2]
[341640683,1731054643299,-500.0,0.00022191,2]
[341640685,1731054643311,-500.0,0.00022191,2]
[341640687,1731054643321,-500.0,0.00022191,2]
[341640688,1731054643330,-305.86245,0.00022191,7]
[341640689,1731054643339,-305.86245,0.00022191,7]
[341640690,1731054643348,-305.86245,0.00022191,7]
[341640691,1731054643358,-305.86245,0.00022191,7]
[341640693,1731054643367,-500.0,0.00022191,2]
[341640695,1731054643376,-500.0,0.00022191,2]
[341640697,1731054643385,-500.0,0.00022191,2]
[341640698,1731054643395,-500.0,0.00022191,2]
[341640699,1731054643403,-500.0,0.00022191,2]
[341640701,1731054643413,-500.0,0.00022191,2]
[341640702,1731054643422,-626.80552227,0.00022191,2]
[341640704,1731054643431,-348.8975375,0.00022191,2]
[341640705,1731054643440,-500.0,0.00022191,2]
[341640706,1731054643449,-500.0,0.00022191,2]
[341640707,1731054643457,-500.0,0.00022191,2]
[341640708,1731054643466,-500.0,0.00022191,2]
[341640709,1731054643475,-151.0,0.00022191,7]
[341640710,1731054643484,-500.0,0.00022191,2]
[341640711,1731054643493,-500.0,0.00022191,2]
[341640712,1731054643502,-500.0,0.00022191,2]
[341640713,1731054643510,-500.0,0.00022191,2]
[341640714,1731054643519,-378.1070657,0.00022191,2]
[341640715,1731054643528,-500.0,0.00022191,2]
[341640716,1731054643537,-1591.58,0.00022191,2]
[341640717,1731054643546,-500.0,0.00022191,2]
[341640718,1731054643559,-500.0,0.00022191,2]
[341640719,1731054643572,-500.0,0.00022191,2]
[341640720,1731054643581,-559.04,0.00022191,2]
[341640721,1731054643590,-500.0,0.00022191,2]
[341640722,1731054643600,-500.0,0.00022191,2]
[341640723,1731054643609,-500.0,0.00022191,2]
[341640724,1731054643618,-500.0,0.00022191,2]
[341640725,1731054643627,-500.0,0.00022191,2]
[341640726,1731054643636,-500.0,0.00022191,2]
[341640727,1731054643645,-649.9,0.00022191,2]
[341640728,1731054643655,-500.0,0.00022191,2]
[341640729,1731054643663,-500.0,0.00022191,2]
[341640730,1731054643672,-500.0,0.00022191,2]
[341640731,1731054643681,-789.48,0.00022191,2]
[341640732,1731054643690,-500.0,0.00022191,2]
[341640733,1731054643700,-1466.2,0.00022191,2]
[341640734,1731054643709,-500.0,0.00022191,2]
[341640735,1731054643718,-530.9419479,0.00022191,2]
[341640736,1731054643727,-500.0,0.00022191,2]
[341640737,1731054643737,-500.0,0.00022191,2]
[341640738,1731054643746,-500.0,0.00022191,2]
[341640739,1731054643755,-500.0,0.00022191,2]
[341640740,1731054643763,-500.0,0.00022191,2]
[341640741,1731054643773,-500.0,0.00022191,2]
[341640742,1731054643782,-500.0,0.00022191,2]
[341640743,1731054643791,-500.0,0.00022191,2]
[341640744,1731054643804,-622.25661589,0.00022191,2]
[341640745,1731054643813,-500.0,0.00022191,2]
[341640746,1731054643822,-500.0,0.00022191,2]
[341640747,1731054643831,-500.0,0.00022191,2]
[341640748,1731054643840,-549.06880751,0.00022191,2]
[341640749,1731054643850,-500.0,0.00022191,2]
[341640750,1731054643859,-500.0,0.00022191,2]
[341640751,1731054643869,-750.04,0.00022191,2]
[341640752,1731054643878,-500.0,0.00022191,2]
[341640753,1731054643887,-500.0,0.00022191,2]
[341640754,1731054643896,-500.0,0.00022191,2]
[341640755,1731054643905,-500.0,0.00022191,2]
[341640756,1731054643914,-500.0,0.00022191,2]
[341640757,1731054643923,-163.53043629,0.00022191,2]
[341640758,1731054643932,-552.99,0.00022191,2]
[341640759,1731054643941,-500.0,0.00022191,2]
[341640760,1731054643950,-500.0,0.00022191,2]
[341640761,1731054643961,-500.0,0.00022191,2]
[341640762,1731054643970,-5328.58,0.00022191,2]
[341640763,1731054643979,-500.0,0.00022191,2]
[341640764,1731054643989,-500.0,0.00022191,2]
[341640765,1731054643998,-500.0,0.00022191,2]
[341640766,1731054644007,-500.0,0.00022191,2]
[341640767,1731054644016,-500.0,0.00022191,2]
[341640768,1731054644025,-500.0,0.00022191,2]
[341640769,1731054644117,-9618.57,0.00022191,2]
[341640770,1731054644127,-500.0,0.00022191,2]
[341640771,1731054644137,-961.72,0.00022191,2]
[341640772,1731054644147,-500.0,0.00022191,2]
[341640773,1731054644156,-500.0,0.00022191,2]
[341640774,1731054644166,-942.93,0.00022191,2]
[341640775,1731054644175,-500.0,0.00022191,2]
[341640776,1731054644186,-500.0,0.00022191,2]
[341640777,1731054644197,-500.0,0.00022191,2]
[341640778,1731054644207,-500.0,0.00022191,2]
[341640779,1731054644216,-550.57,0.00022191,2]
[341640780,1731054644226,-500.0,0.00022191,2]
[341640781,1731054644235,-683.0,0.00022191,2]
[341640782,1731054644244,-500.0,0.00022191,2]
[341640783,1731054644253,-500.0,0.00022191,2]
[341640784,1731054644263,-500.0,0.00022191,2]
[341640785,1731054644273,-487.27084624,0.00022191,2]
[341640786,1731054644283,-500.0,0.00022191,2]
[341640787,1731054644292,-500.0,0.00022191,2]
[341640788,1731054644303,-500.0,0.00022191,2]
[341640789,1731054644312,-500.0,0.00022191,2]
[341640790,1731054644322,-500.0,0.00022191,2]
[341640791,1731054644331,-500.0,0.00022191,2]
[341640792,1731054644340,-500.0,0.00022191,2]
[341640793,1731054644350,-684.63,0.00022191,2]
[341640794,1731054644359,-536.013328,0.00022191,2]
[341640795,1731054644368,-500.0,0.00022191,2]
[341640796,1731054644377,-151.0,0.00022191,7]
[341640797,1731054644387,-507.95479792,0.00022191,2]
[341640798,1731054644396,-500.0,0.00022191,2]
[341640799,1731054644406,-500.0,0.00022191,2]
[341640800,1731054644416,-151.0,0.00022191,7]
[341640801,1731054644425,-500.0,0.00022191,2]
[341640802,1731054644435,-151.0,0.00022191,7]
[341640803,1731054644444,-504.82262308,0.00022191,2]
[341640804,1731054644453,-1222.926847,0.00022191,7]
[341640805,1731054644463,-523.52651081,0.00022191,2]
[341640806,1731054644472,-1222.926847,0.00022191,7]
[341640807,1731054644481,-500.0,0.00022191,2]
[341640808,1731054644491,-151.0,0.00022191,7]
[341640809,1731054644500,-4003.83,0.00022191,2]
[341640810,1731054644509,-500.0,0.00022191,2]
[341640811,1731054644518,-621.17,0.00022191,2]
[341640812,1731054644528,-544.36671135,0.00022191,2]
[341640813,1731054644537,-500.0,0.00022191,2]
[341640814,1731054644546,-500.0,0.00022191,2]
[341640815,1731054644558,-500.0,0.00022191,2]
[341640816,1731054644568,-500.0,0.00022191,2]
[341640817,1731054644578,-500.0,0.00022191,2]
[341640818,1731054644588,-500.0,0.00022191,2]
[341640819,1731054644597,-153.166935,0.00022191,7]
[341640820,1731054644607,-500.0,0.00022191,2]
[341640821,1731054644617,-500.0,0.00022191,2]
[341640822,1731054644627,-500.0,0.00022191,2]
[341640823,1731054644637,-500.0,0.00022191,2]
[341640824,1731054644646,-244.62029407,0.00022191,2]
[341640825,1731054644656,-802.77,0.00022191,2]
[341640826,1731054644665,-500.0,0.00022191,2]
[341640827,1731054644675,-151.0,0.00022191,7]
[341640828,1731054644684,-500.0,0.00022191,2]
[341640829,1731054644693,-578.54869807,0.00022191,2]
[341640830,1731054644702,-509.84,0.00022191,2]
[341640831,1731054644713,-500.0,0.00022191,2]
[341640832,1731054644723,-500.0,0.00022191,2]
[341640833,1731054644734,-500.0,0.00022191,2]
[341640834,1731054644743,-3357.25,0.00022191,2]
[341640835,1731054644753,-500.0,0.00022191,2]
[341640836,1731054644763,-4909.91,0.00022191,2]
[341640837,1731054644772,-1008.970124,0.00022191,7]
[341640838,1731054644781,-500.0,0.00022191,2]
[341640839,1731054644791,-500.0,0.00022191,2]
[341640840,1731054644802,-500.0,0.00022191,2]
[341640841,1731054644811,-1008.970124,0.00022191,7]
[341640842,1731054644821,-1281.41,0.00022191,2]
[341640843,1731054644830,-306.06309448,0.00022191,2]
[341640844,1731054644839,-500.0,0.00022191,2]
[341640845,1731054644850,-151.0,0.00022191,7]
[341640846,1731054644859,-500.0,0.00022191,2]
[341640847,1731054644868,-151.0,0.00022191,7]
[341640848,1731054644878,-190.608239,0.00022191,7]
[341640849,1731054644887,-151.0,0.00022191,7]
[341640850,1731054644897,-1146.35,0.00022191,2]
[341640851,1731054644906,-190.608239,0.00022191,7]
[341640852,1731054644916,-500.0,0.00022191,2]
[341640853,1731054644925,-500.0,0.00022191,2]
[341640854,1731054644935,-322.617262,0.00022191,7]
[341640855,1731054644946,-500.0,0.00022191,2]
[341640856,1731054644955,-157.063331,0.00022191,7]
[341640857,1731054644964,-500.0,0.00022191,2]
[341640858,1731054644973,-322.617262,0.00022191,7]
[341640859,1731054644982,-500.0,0.00022191,2]
[341640860,1731054644991,-500.0,0.00022191,2]
[341640861,1731054645000,-500.0,0.00022191,2]
[341640862,1731054645010,-518.93973576,0.00022191,2]
[341640863,1731054645019,-500.0,0.00022191,2]
[341640864,1731054645029,-12170.22,0.00022191,2]
[341640865,1731054645038,-514.924903,0.00022191,7]
[341640866,1731054645047,-514.924903,0.00022191,7]
[341640867,1731054645059,-500.0,0.00022191,2]
[341640868,1731054645068,-500.0,0.00022191,2]
[341640869,1731054645077,-178.485419,0.00022191,7]
[341640870,1731054645086,-151.0,0.00022191,7]
[341640871,1731054645098,-500.0,0.00022191,2]
[341640872,1731054645111,-569.64844154,0.00022228,2]
[341640873,1731054645121,-234.048908,0.00022244,2]
[341640874,1731054645130,-569.64844154,0.00022365,2]
[341640875,1731054645140,-166.666666,0.00022431,2]
[341640876,1731054645151,-500.0,0.00022464,2]
[341640877,1731054645160,-500.0,0.00022464,2]
[341640878,1731054645170,-464.90244324,0.00022465,2]
[341640879,1731054645183,-500.0,0.00022465,2]
[341640880,1731054645193,-500.0,0.00022465,2]
[341640881,1731054645202,-500.0,0.00022465,2]
[341640882,1731054645212,-500.0,0.00022465,2]
[341640883,1731054645223,-151.0,0.00022465,7]
[341640884,1731054645232,-500.0,0.00022465,2]
[341640885,1731054645242,-500.0,0.00022465,2]
[341640886,1731054645251,-500.0,0.00022465,2]
[341640887,1731054645261,-500.0,0.00022465,2]
[341640888,1731054645270,-500.0,0.00022465,2]
[341640889,1731054645280,-500.0,0.00022465,2]
[341640890,1731054645289,-500.0,0.00022465,2]
[341640891,1731054645299,-500.0,0.00022465,2]
[341640892,1731054645311,-500.0,0.00022465,2]
[341640893,1731054645320,-500.0,0.00022465,2]
[341640894,1731054645330,-713.44,0.00022465,2]
[341640895,1731054645339,-500.0,0.00022465,2]
[341640896,1731054645347,-500.0,0.00022465,2]
[341640897,1731054645356,-500.0,0.00022465,2]
[341640898,1731054645366,-305.86245,0.00022465,7]
[341640899,1731054645375,-305.86245,0.00022465,7]
[341640900,1731054645385,-305.86245,0.00022465,7]
[341640901,1731054645394,-305.86245,0.00022465,7]
[341640902,1731054645403,-500.0,0.00022465,2]
[341640903,1731054645413,-500.0,0.00022465,2]
[341640904,1731054645422,-572.14790739,0.00022465,2]
[341640905,1731054645431,-500.0,0.00022465,2]
[341640906,1731054645441,-362.13959531,0.00022465,2]
[341640907,1731054645450,-500.0,0.00022465,2]
[341640908,1731054645459,-500.0,0.00022465,2]
[341640909,1731054645468,-521.38574639,0.00022465,2]
[341640910,1731054645478,-348.29119973,0.00022465,2]
[341640911,1731054645488,-310.39675472,0.00022465,2]
[341640912,1731054645497,-500.0,0.00022465,2]
[341640913,1731054645507,-1591.58,0.00022465,2]
[341640914,1731054645517,-500.0,0.00022465,2]
[341640915,1731054645527,-500.0,0.00022465,2]
[341640916,1731054645537,-559.04,0.00022465,2]
[341640917,1731054645546,-500.0,0.00022465,2]
[341640918,1731054645557,-500.0,0.00022465,2]
[341640919,1731054645567,-258.64099965,0.00022465,2]
[341640920,1731054645576,-649.9,0.00022465,2]
[341640921,1731054645586,-500.0,0.00022465,2]
[341640922,1731054645596,-500.0,0.00022465,2]
[341640923,1731054645605,-789.48,0.00022465,2]
[341640924,1731054645615,-500.0,0.00022465,2]
[341640925,1731054645624,-1466.2,0.00022465,2]
[341640926,1731054645634,-500.0,0.00022465,2]
[341640927,1731054645644,-500.0,0.00022465,2]
[341640928,1731054645653,-500.0,0.00022465,2]
[341640929,1731054645663,-500.0,0.00022465,2]
[341640930,1731054645673,-500.0,0.00022465,2]
[341640931,1731054645683,-500.0,0.00022465,2]
[341640932,1731054645693,-500.0,0.00022465,2]
[341640933,1731054645704,-500.0,0.00022465,2]
[341640934,1731054645713,-500.0,0.00022465,2]
[341640935,1731054645722,-500.0,0.00022465,2]
[341640936,1731054645732,-500.0,0.00022465,2]
[341640937,1731054645742,-500.0,0.00022465,2]
[341640938,1731054645753,-151.0,0.00022465,7]
[341640939,1731054645763,-151.0,0.00022465,7]
[341640940,1731054645772,-500.0,0.00022465,2]
[341640941,1731054645782,-750.04,0.00022465,2]
[341640942,1731054645792,-500.0,0.00022465,2]
[341640944,1731054645804,-500.0,0.00022465,2]
[341640945,1731054645815,-1065.625991,0.00022465,7]
[341640946,1731054645825,-1065.625991,0.00022465,7]
[341640947,1731054645835,-500.0,0.00022465,2]
[341640948,1731054645845,-500.0,0.00022465,2]
[341640949,1731054645856,-151.0,0.00022465,7]
[341640950,1731054645866,-552.99,0.00022465,2]
[341640951,1731054645875,-500.0,0.00022465,2]
[341640952,1731054645885,-290.240081,0.00022465,7]
[341640953,1731054645894,-500.0,0.00022465,2]
[341640954,1731054645904,-5328.58,0.00022465,2]
[341640955,1731054645914,-290.240081,0.00022465,7]
[341640956,1731054645923,-500.0,0.00022465,2]
[341640957,1731054645933,-151.0,0.00022465,7]
[341640958,1731054645943,-200.377639,0.00022465,7]
[341640959,1731054645953,-200.377639,0.00022465,7]
[341640960,1731054645962,-213.83237,0.00022465,7]
[341640961,1731054645972,-500.0,0.00022465,2]
[341640962,1731054645983,-151.0,0.00022465,7]
[341640963,1731054645992,-151.0,0.00022465,7]
[341640964,1731054646002,-151.0,0.00022465,7]
[341640965,1731054646012,-151.0,0.00022465,7]
[341640970,1731054646022,-500.0,0.00022465,2]
[341640971,1731054646122,-500.0,0.00022465,2]
[341640972,1731054646132,-500.0,0.00022465,2]
[341640974,1731054646143,-9618.57,0.00022465,2]
[341640976,1731054646155,-500.0,0.00022465,2]
[341640978,1731054646166,-961.72,0.00022465,2]
[341640979,1731054646175,-222.209505,0.00022465,7]
[341640980,1731054646187,-222.209505,0.00022465,7]
[341640981,1731054646198,-308.09432832,0.00022465,2]
[341640982,1731054646207,-283.767914,0.00022465,7]
[341640983,1731054646217,-283.767914,0.00022465,7]
[341640984,1731054646226,-222.209505,0.00022465,7]
[341640985,1731054646235,-222.209505,0.00022465,7]
[341640987,1731054646246,-500.0,0.00022465,2]
[341640988,1731054646255,-283.767914,0.00022465,7]
[341640989,1731054646264,-283.767914,0.00022465,7]
[341640990,1731054646275,-151.0,0.00022465,7]
[341640991,1731054646285,-942.93,0.00022465,2]
[341640992,1731054646295,-617.53453115,0.00022465,2]
[341640993,1731054646307,-500.0,0.00022465,2]
[341640994,1731054646318,-500.0,0.00022465,2]
[341640995,1731054646329,-500.0,0.00022465,2]
[341640996,1731054646339,-550.57,0.00022465,2]
[341640997,1731054646349,-500.0,0.00022465,2]
[341640999,1731054646359,-683.0,0.00022465,2]
[341641000,1731054646369,-500.0,0.00022465,2]
[341641001,1731054646378,-500.0,0.00022465,2]
[341641002,1731054646388,-500.0,0.00022465,2]
[341641003,1731054646397,-151.0,0.00022465,7]
[341641004,1731054646407,-151.0,0.00022465,7]
[341641005,1731054646416,-231.285017,0.00022465,7]
[341641006,1731054646426,-231.285017,0.00022465,7]
[341641007,1731054646436,-231.285017,0.00022465,7]
[341641008,1731054646445,-231.285017,0.00022465,7]
[341641009,1731054646455,-464.969724,0.00022465,7]
[341641010,1731054646465,-464.969724,0.00022465,7]
[341641011,1731054646475,-464.969724,0.00022465,7]
[341641012,1731054646484,-464.969724,0.00022465,7]
[341641013,1731054646494,-500.0,0.00022465,2]
[341641014,1731054646504,-342.790446,0.00022465,7]
[341641015,1731054646513,-342.790446,0.00022465,7]
[341641016,1731054646523,-500.0,0.00022465,2]
[341641017,1731054646533,-500.0,0.00022465,2]
[341641018,1731054646542,-342.790446,0.00022465,7]
[341641019,1731054646553,-342.790446,0.00022465,7]
[341641020,1731054646563,-500.0,0.00022465,2]
[341641021,1731054646573,-430.11521447,0.00022465,2]
[341641022,1731054646583,-500.0,0.00022465,2]
[341641023,1731054646593,-500.0,0.00022465,2]
[341641024,1731054646603,-684.63,0.00022465,2]
[341641025,1731054646612,-387.96142,0.00022465,7]
[341641026,1731054646622,-387.96142,0.00022465,7]
[341641027,1731054646631,-500.0,0.00022465,2]
[341641028,1731054646640,-151.0,0.00022465,7]
[341641029,1731054646650,-387.96142,0.00022465,7]
[341641030,1731054646659,-387.96142,0.00022465,7]
[341641031,1731054646669,-500.0,0.00022465,2]
[341641032,1731054646679,-500.0,0.00022465,2]
[341641033,1731054646689,-151.0,0.00022465,7]
[341641034,1731054646698,-284.482402,0.00022465,7]
[341641035,1731054646707,-284.482402,0.00022465,7]
[341641036,1731054646718,-500.0,0.00022465,2]
[341641037,1731054646727,-192.33425,0.00022465,7]
[341641038,1731054646736,-284.482402,0.00022465,7]
[341641039,1731054646746,-284.482402,0.00022465,7]
[341641040,1731054646755,-1222.926847,0.00022465,7]
[341641041,1731054646765,-1222.926847,0.00022465,7]
[341641042,1731054646775,-500.0,0.00022465,2]
[341641043,1731054646784,-151.0,0.00022465,7]
[341641044,1731054646793,-4003.83,0.00022465,2]
[341641045,1731054646803,-537.79849841,0.00022465,2]
[341641046,1731054646811,-621.17,0.00022465,2]
[341641047,1731054646820,-162.24876163,0.00022465,2]
[341641048,1731054646829,-500.0,0.00022465,2]
[341641049,1731054646838,-500.0,0.00022465,2]
[341641050,1731054646849,-500.0,0.00022465,2]
[341641051,1731054646858,-500.0,0.00022465,2]
[341641052,1731054646867,-500.0,0.00022465,2]
[341641053,1731054646876,-500.0,0.00022465,2]
[341641054,1731054646885,-500.0,0.00022465,2]
[341641055,1731054646894,-500.0,0.00022465,2]
[341641056,1731054646904,-500.0,0.00022465,2]
[341641057,1731054646913,-802.77,0.00022465,2]
[341641058,1731054646922,-500.0,0.00022465,2]
[341641059,1731054646931,-500.0,0.00022465,2]
[341641060,1731054646940,-509.84,0.00022465,2]
[341641061,1731054646949,-500.0,0.00022465,2]
[341641062,1731054646959,-500.0,0.00022465,2]
[341641063,1731054646968,-500.0,0.00022465,2]
[341641064,1731054646977,-3357.25,0.00022465,2]
[341641065,1731054646986,-4909.91,0.00022465,2]
[341641066,1731054646995,-500.0,0.00022465,2]
[341641067,1731054647009,-1008.970124,0.00022465,7]
[341641068,1731054647023,-1008.970124,0.00022465,7]
[341641069,1731054647037,-500.0,0.00022465,2]
[341641070,1731054647047,-1008.970124,0.00022465,7]
[341641071,1731054647065,-1281.41,0.00022465,2]
[341641072,1731054647078,-1008.970124,0.00022465,7]
[341641073,1731054647092,-500.0,0.00022465,2]
[341641074,1731054647106,-151.0,0.00022465,7]
[341641075,1731054647119,-500.0,0.00022465,2]
[341641076,1731054647134,-151.0,0.00022465,7]
[341641077,1731054647148,-151.0,0.00022465,7]
[341641078,1731054647160,-190.608239,0.00022465,7]
[341641079,1731054647174,-190.608239,0.00022465,7]
[341641080,1731054647188,-151.0,0.00022465,7]
[341641081,1731054647201,-1146.35,0.00022465,2]
[341641082,1731054647211,-151.0,0.00022465,7]
[341641083,1731054647223,-190.608239,0.00022465,7]
[341641084,1731054647234,-190.608239,0.00022465,7]
[341641085,1731054647247,-500.0,0.00022465,2]
[341641086,1731054647260,-500.0,0.00022465,2]
[341641087,1731054647273,-322.617262,0.00022465,7]
[341641088,1731054647286,-322.617262,0.00022465,7]
[341641089,1731054647300,-322.617262,0.00022465,7]
[341641090,1731054647312,-322.617262,0.00022465,7]
[341641091,1731054647326,-441.88722109,0.00022465,2]
[341641092,1731054647336,-500.0,0.00022465,2]
[341641093,1731054647346,-488.58438961,0.00022465,2]
[341641094,1731054647356,-500.0,0.00022465,2]
[341641095,1731054647368,-500.0,0.00022465,2]
[341641096,1731054647383,-12170.22,0.00022465,2]
[341641097,1731054647395,-514.924903,0.00022465,7]
[341641098,1731054647405,-514.924903,0.00022465,7]
[341641099,1731054647417,-514.924903,0.00022465,7]
[341641100,1731054647428,-500.0,0.00022465,2]
[341641101,1731054647441,-500.0,0.00022465,2]
[341641102,1731054647454,-514.924903,0.00022465,7]
[341641103,1731054647464,-151.0,0.00022465,7]
[341641104,1731054647475,-178.485419,0.00022465,7]
[341641105,1731054647487,-178.485419,0.00022465,7]
[341641106,1731054647497,-151.0,0.00022465,7]
[341641107,1731054647509,-500.0,0.00022465,2]
[341641108,1731054647520,-500.0,0.00022737,2]
[341641109,1731054647531,-500.0,0.00022737,2]
[341641110,1731054647543,-500.96587915,0.00022738,2]
[341641111,1731054647556,-500.0,0.00022738,2]
[341641112,1731054647570,-500.0,0.00022738,2]
[341641113,1731054647580,-500.4613757,0.00022739,2]
[341641114,1731054647591,-401.68108329,0.00022739,2]
[341641115,1731054647603,-500.0,0.00022739,2]
[341641116,1731054647614,-500.0,0.00022739,2]
[341641117,1731054647625,-500.0,0.00022739,2]
[341641118,1731054647636,-374.80031547,0.00022739,2]
[341641119,1731054647647,-500.0,0.00022739,2]
[341641120,1731054647659,-500.0,0.00022739,2]